fUST/lending_fUST_20251010
["ID","MTS","AMOUNT","RATE_DAILY","PERIOD"]
[390559989,1760083840781,-588.03,0.00016712,2]
[390559991,1760083840790,-500.0,0.00016712,2]
[390559993,1760083840801,-615.05,0.00016712,2]
[390559995,1760083840813,-500.0,0.00016712,2]
[390559997,1760083840822,-500.0,0.00016712,2]
[390559998,1760083840831,-588.35,0.00016712,2]
[390560000,1760083840842,-500.0,0.00016712,2]
[390560002,1760083840851,-919.43,0.00016712,2]
[390560004,1760083840861,-501.37353305,0.00016712,2]
[390560006,1760083840870,-500.0,0.00016712,2]
[390560008,1760083840881,-500.0,0.00016712,2]
[390560010,1760083840890,-757.64,0.00016712,2]
[390560012,1760083840899,-500.0,0.00016712,2]
[390560014,1760083840910,-1656.34,0.00016712,2]
[390560016,1760083840919,-1111.0,0.00016712,2]
[390560018,1760083840928,-758.1,0.00016712,2]
[390560020,1760083840937,-500.0,0.00016712,2]
[390560022,1760083840946,-3316.25,0.00016712,2]
[390560024,1760083840956,-2064.6,0.00016712,2]
[390560026,1760083840964,-500.0,0.00016712,2]
[390560028,1760083840974,-500.0,0.00016712,2]
[390560030,1760083840983,-6323.8,0.00016712,2]
[390560032,1760083840992,-500.0,0.00016712,2]
[390560034,1760083841002,-503.01,0.00016712,2]
[390560036,1760083841012,-2059.01,0.00016712,2]
[390560037,1760083841021,-500.0,0.00016712,2]
[390560039,1760083841030,-358.89691764,0.00016712,2]
[390560041,1760083841040,-5772.05,0.00016712,2]
[390560043,1760083841049,-500.0,0.00016712,2]
[390560045,1760083841059,-500.0,0.00016712,2]
[390560047,1760083841068,-500.0,0.00016712,2]
[390560049,1760083841078,-1468.2,0.00016712,2]
[390560050,1760083841087,-500.0,0.00016712,2]
[390560052,1760083841096,-2093.4,0.00016712,2]
[390560054,1760083841105,-849.1,0.00016712,2]
[390560056,1760083841114,-500.0,0.00016712,2]
[390560058,1760083841123,-500.0,0.00016712,2]
[390560060,1760083841132,-500.0,0.00016712,2]
[390560062,1760083841141,-500.0,0.00016712,2]
[390560064,1760083841150,-500.0,0.00016712,2]
[390560066,1760083841159,-500.0,0.00016712,2]
[390560068,1760083841168,-500.0,0.00016712,2]
[390560070,1760083841177,-500.0,0.00016712,2]
[390560072,1760083841186,-500.0,0.00016712,2]
[390560074,1760083841196,-500.0,0.00016712,2]
[390560076,1760083841205,-500.0,0.00016712,2]
[390560078,1760083841214,-2991.67,0.00016712,2]
[390560080,1760083841224,-500.0,0.00016712,2]
[390560082,1760083841233,-500.0,0.00016712,2]
[390560084,1760083841242,-926.24,0.00016712,2]
[390560086,1760083841251,-867.28,0.00016712,2]
[390560088,1760083841260,-335.48160139,0.00016712,2]
[390560090,1760083841270,-792.19,0.00016712,2]
[390560092,1760083841279,-500.0,0.00016712,2]
[390560093,1760083841288,-500.0,0.00016712,2]
[390560095,1760083841297,-500.0,0.00016712,2]
[390560097,1760083841307,-500.0,0.00016712,2]
[390560099,1760083841316,-1294.14,0.00016712,2]
[390560101,1760083841326,-500.0,0.00016712,2]
[390560103,1760083841335,-512.32,0.00016712,2]
[390560105,1760083841344,-500.0,0.00016712,2]
[390560107,1760083841353,-500.0,0.00016712,2]
[390560109,1760083841362,-860.19,0.00016712,2]
[390560111,1760083841371,-952.43,0.00016712,2]
[390560113,1760083841381,-684.8,0.00016712,2]
[390560115,1760083841390,-500.0,0.00016712,2]
[390560118,1760083841404,-500.0,0.00016712,2]
[390560120,1760083841417,-1392.68,0.00016712,2]
[390560122,1760083841430,-500.0,0.00016712,2]
[390560125,1760083841442,-883.77,0.00016712,2]
[390560127,1760083841454,-500.0,0.00016712,2]
[390560129,1760083841464,-722.8,0.00016712,2]
[390560131,1760083841477,-4092.86,0.00016712,2]
[390560134,1760083841490,-500.0,0.00016712,2]
[390560136,1760083841502,-500.0,0.00016712,2]
[390560138,1760083841514,-500.0,0.00016712,2]
[390560141,1760083841526,-1363.86,0.00016712,2]
[390560143,1760083841539,-500.0,0.00016712,2]
[390560145,1760083841553,-500.0,0.00016712,2]
[390560147,1760083841567,-157.3039905,0.00016712,2]
[390560150,1760083841580,-500.0,0.00016712,2]
[390560152,1760083841591,-500.0,0.00016712,2]
[390560154,1760083841603,-500.0,0.00016712,2]
[390560156,1760083841614,-544.05,0.00016712,2]
[390560158,1760083841626,-500.0,0.00016712,2]
[390560160,1760083841637,-503.10646988,0.00016712,2]
[390560162,1760083841649,-725.67,0.00016712,2]
[390560165,1760083841662,-500.0,0.00016712,2]
[390560167,1760083841674,-519.1,0.00016712,2]
[390560169,1760083841685,-2605.72,0.00016712,2]
[390560171,1760083841696,-500.0,0.00016712,2]
[390560173,1760083841706,-500.0,0.00016712,2]
[390560175,1760083841716,-500.0,0.00016712,2]
[390560177,1760083841728,-788.96,0.00016712,2]
[390560179,1760083841739,-1069.32,0.00016712,2]
[390560182,1760083841751,-500.0,0.00016712,2]
[390560184,1760083841763,-500.0,0.00016712,2]
[390560186,1760083841775,-500.0,0.00016712,2]
[390560188,1760083841786,-500.0,0.00016712,2]
[390560191,1760083841799,-502.10397334,0.00016712,2]
[390560193,1760083841815,-500.0,0.00016712,2]
[390560195,1760083841827,-711.83,0.00016712,2]
[390560198,1760083841840,-500.0,0.00016712,2]
[390560200,1760083841852,-4223.7,0.00016712,2]
[390560202,1760083841862,-1019.89,0.00016712,2]
[390560204,1760083841872,-500.0,0.00016712,2]
[390560206,1760083841883,-501.79847167,0.00016712,2]
[390560208,1760083841894,-5148.42,0.00016712,2]
[390560210,1760083841906,-500.0,0.00016712,2]
[390560213,1760083841919,-901.93,0.00016712,2]
[390560215,1760083841931,-500.0,0.00016712,2]
[390560217,1760083841941,-616.2,0.00016712,2]
[390560219,1760083841951,-500.0,0.00016712,2]
[390560221,1760083841961,-500.0,0.00016712,2]
[390560223,1760083841972,-2003.86,0.00016712,2]
[390560226,1760083841984,-500.0,0.00016712,2]
[390560228,1760083841995,-500.0,0.00016712,2]
[390560230,1760083842005,-1996.43,0.00016712,2]
[390560232,1760083842015,-500.0,0.00016712,2]
[390560234,1760083842025,-500.0,0.00016712,2]
[390560236,1760083842035,-500.0,0.00016712,2]
[390560238,1760083842045,-500.0,0.00016712,2]
[390560240,1760083842056,-500.0,0.00016712,2]
[390560242,1760083842067,-2336.93,0.00016712,2]
[390560244,1760083842077,-500.0,0.00016712,2]
[390560246,1760083842088,-1198.94,0.00016712,2]
[390560250,1760083842109,-1294.33,0.00016712,2]
[390560252,1760083842124,-500.0,0.00016712,2]
[390560255,1760083842138,-500.0,0.00016712,2]
[390560257,1760083842151,-718.57,0.00016712,2]
[390560260,1760083842164,-500.0,0.00016712,2]
[390560262,1760083842178,-178.82930979,0.00016712,2]
[390560264,1760083842190,-815.47,0.00016712,2]
[390560267,1760083842204,-500.0,0.00016712,2]
[390560269,1760083842217,-614.65,0.00016712,2]
[390560272,1760083842235,-500.0,0.00016712,2]
[390560274,1760083842247,-447.156737,0.00016725,2]
[390560277,1760083842259,-300.0,0.00016766,2]
[390560279,1760083842272,-300.0,0.00016766,2]
[390560281,1760083842283,-300.0,0.00016766,2]
[390560283,1760083842295,-300.0,0.00016766,2]
[390560285,1760083842307,-300.0,0.00016766,2]
[390560289,1760083842320,-300.0,0.00016766,2]
[390560293,1760083842331,-300.0,0.00016766,2]
[390560296,1760083842343,-300.0,0.00016766,2]
[390560300,1760083842355,-300.0,0.00016766,2]
[390560302,1760083842366,-300.0,0.00016766,2]
[390560305,1760083842378,-300.0,0.00016766,2]
[390560307,1760083842389,-300.0,0.00016766,2]
[390560309,1760083842402,-300.0,0.00016766,2]
[390560311,1760083842413,-300.0,0.00016766,2]
[390560314,1760083842424,-300.0,0.00016766,2]
[390560316,1760083842435,-600.0,0.00016766,2]
[390560318,1760083842447,-379.55507946,0.00016938,2]
[390560321,1760083842458,-500.0,0.00016986,2]
[390560324,1760083842470,-641.4,0.00016986,2]
[390560326,1760083842481,-500.0,0.00016986,2]
[390560329,1760083842492,-500.0,0.00016986,2]
[390560331,1760083842503,-500.0,0.00016986,2]
[390560334,1760083842514,-500.0,0.00016986,2]
[390560336,1760083842526,-503.68,0.00016986,2]
[390560338,1760083842537,-508.15463161,0.00016986,2]
[390560340,1760083842549,-500.0,0.00016986,2]
[390560343,1760083842560,-500.0,0.00016986,2]
[390560345,1760083842571,-564.02757108,0.00016986,2]
[390560347,1760083842582,-850.34,0.00016986,2]
[390560349,1760083842594,-500.0,0.00016986,2]
[390560351,1760083842605,-1184.89,0.00016986,2]
[390560353,1760083842618,-500.0,0.00016986,2]
[390560355,1760083842629,-509.18874882,0.00016986,2]
[390560358,1760083842640,-500.0,0.00016986,2]
[390560360,1760083842651,-503.73678477,0.00016986,2]
[390560362,1760083842662,-500.0,0.00016986,2]
[390560364,1760083842673,-349.90494868,0.00016986,2]
[390560366,1760083842684,-500.0,0.00016986,2]
[390560368,1760083842695,-500.0,0.00016986,2]
[390560370,1760083842706,-500.0,0.00016986,2]
[390560372,1760083842717,-500.0,0.00016986,2]
[390560375,1760083842728,-500.0,0.00016986,2]
[390560377,1760083842740,-500.0,0.00016986,2]
[390560379,1760083842751,-629.52294604,0.00016986,2]
[390560381,1760083842762,-500.0,0.00016986,2]
[390560383,1760083842774,-500.0,0.00016986,2]
[390560386,1760083842786,-199.27098687,0.00016986,2]
[390560388,1760083842797,-461.63971521,0.00016986,2]
[390560390,1760083842812,-500.0,0.00016986,2]
[390560392,1760083842824,-151.0,0.00016986,2]
[390560394,1760083842835,-500.0,0.00016986,2]
[390560397,1760083842847,-500.0,0.00016986,2]
[390560399,1760083842858,-151.0,0.00016986,2]
[390560401,1760083842869,-500.0,0.00016986,2]
[390560403,1760083842880,-151.0,0.00016986,2]
[390560405,1760083842891,-500.0,0.00016986,2]
[390560407,1760083842902,-1009.81,0.00016986,2]
[390560409,1760083842913,-892.68,0.00016986,2]
[390560411,1760083842924,-500.0,0.00016986,2]
[390560414,1760083842935,-500.0,0.00016986,2]
[390560416,1760083842945,-500.0,0.00016986,2]
[390560418,1760083842956,-500.0,0.00016986,2]
[390560420,1760083842966,-500.0,0.00016986,2]
[390560422,1760083842977,-971.38,0.00016986,2]
[390560424,1760083842988,-500.0,0.00016986,2]
[390560426,1760083842998,-500.0,0.00016986,2]
[390560428,1760083843009,-838.62,0.00016986,2]
[390560430,1760083843020,-500.0,0.00016986,2]
[390560432,1760083843033,-500.0,0.00016986,2]
[390560433,1760083843044,-500.0,0.00016986,2]
[390560434,1760083843055,-500.0,0.00016986,2]
[390560435,1760083843066,-500.0,0.00016986,2]
[390560436,1760083843076,-500.0,0.00016986,2]
[390560437,1760083843087,-500.0,0.00016986,2]
[390560438,1760083843097,-164.54126561,0.00016986,2]
[390560439,1760083843108,-624.41840311,0.00016986,2]
[390560440,1760083843119,-500.0,0.00016986,2]
[390560441,1760083843129,-500.0,0.00016986,2]
[390560442,1760083843140,-500.0,0.00016986,2]
[390560443,1760083843152,-500.0,0.00016986,2]
[390560444,1760083843162,-500.0,0.00016986,2]
[390560445,1760083843172,-500.0,0.00016986,2]
[390560446,1760083843183,-500.0,0.00016986,2]
[390560447,1760083843194,-151.0,0.00016986,2]
[390560448,1760083843203,-500.0,0.00016986,2]
[390560449,1760083843213,-152.357197,0.00016986,2]
[390560450,1760083843222,-2085.53,0.00016986,2]
[390560451,1760083843231,-500.0,0.00016986,2]
[390560452,1760083843240,-502.4887335,0.00016986,2]
[390560453,1760083843249,-500.0,0.00016986,2]
[390560454,1760083843258,-500.0,0.00016986,2]
[390560455,1760083843267,-500.0,0.00016986,2]
[390560456,1760083843275,-151.0,0.00016986,2]
[390560457,1760083843284,-500.0,0.00016986,2]
[390560458,1760083843293,-1324.92,0.00016986,2]
[390560473,1760083843520,-151.0,0.00016986,2]
[390560476,1760083843538,-151.0,0.00016986,2]
[390560478,1760083843550,-500.0,0.00016986,2]
[390560480,1760083843560,-151.0,0.00016986,2]
[390560483,1760083843569,-151.0,0.00016986,2]
[390560484,1760083843579,-500.0,0.00016986,2]
[390560486,1760083843588,-155.037749,0.00016986,2]
[390560488,1760083843597,-151.0,0.00016986,2]
[390560491,1760083843607,-500.0,0.00016986,2]
[390560493,1760083843618,-500.0,0.00016986,2]
[390560495,1760083843627,-501.63990512,0.00016986,2]
[390560497,1760083843637,-151.638751,0.00016986,2]
[390560499,1760083843646,-923.07,0.00016986,2]
[390560501,1760083843656,-857.35,0.00016986,2]
[390560503,1760083843665,-151.0,0.00016986,2]
[390560505,1760083843675,-500.0,0.00016986,2]
[390560507,1760083843684,-500.0,0.00016986,2]
[390560508,1760083843693,-151.0,0.00016986,2]
[390560510,1760083843703,-151.0,0.00016986,2]
[390560512,1760083843712,-151.0,0.00016986,2]
[390560514,1760083843721,-500.0,0.00016986,2]
[390560516,1760083843731,-6921.08,0.00016986,2]
[390560518,1760083843740,-154.067101,0.00016986,2]
[390560520,1760083843749,-500.0,0.00016986,2]
[390560522,1760083843757,-500.0,0.00016986,2]
[390560524,1760083843766,-500.0,0.00016986,2]
[390560526,1760083843775,-500.0,0.00016986,2]
[390560528,1760083843784,-500.0,0.00016986,2]
[390560530,1760083843793,-863.76,0.00016986,2]
[390560532,1760083843803,-915.46,0.00016986,2]
[390560534,1760083843814,-500.0,0.00016986,2]
[390560536,1760083843823,-2699.43,0.00016986,2]
[390560538,1760083843832,-153.62335116,0.00016986,2]
[390560540,1760083843843,-500.0,0.00016986,2]
[390560542,1760083843851,-500.0,0.00016986,2]
[390560544,1760083843861,-930.19,0.00016986,2]
[390560546,1760083843870,-500.0,0.00016986,2]
[390560548,1760083843882,-503.7590767,0.00016986,2]
[390560550,1760083843891,-588.03,0.00016986,2]
[390560552,1760083843900,-151.0,0.00016986,2]
[390560554,1760083843909,-500.0,0.00016986,2]
[390560556,1760083843919,-615.05,0.00016986,2]
[390560558,1760083843928,-500.0,0.00016986,2]
[390560560,1760083843937,-588.35,0.00016986,2]
[390560562,1760083843946,-500.0,0.00016986,2]
[390560564,1760083843955,-919.43,0.00016986,2]
[390560566,1760083843964,-500.0,0.00016986,2]
[390560568,1760083843973,-500.0,0.00016986,2]
[390560570,1760083843982,-757.64,0.00016986,2]
[390560572,1760083843991,-256.33792336,0.00016986,2]
[390560574,1760083844000,-1656.34,0.00016986,2]
[390560576,1760083844011,-1111.0,0.00016986,2]
[390560578,1760083844019,-758.1,0.00016986,2]
[390560580,1760083844029,-151.0,0.00016986,2]
[390560582,1760083844038,-3316.25,0.00016986,2]
[390560584,1760083844047,-2064.6,0.00016986,2]
[390560586,1760083844056,-500.0,0.00016986,2]
[390560588,1760083844066,-500.0,0.00016986,2]
[390560590,1760083844075,-6323.8,0.00016986,2]
[390560592,1760083844085,-500.0,0.00016986,2]
[390560594,1760083844094,-151.859235,0.00016986,2]
[390560595,1760083844104,-2059.01,0.00016986,2]
[390560597,1760083844113,-500.0,0.00016986,2]
[390560599,1760083844123,-5772.05,0.00016986,2]
[390560601,1760083844132,-500.0,0.00016986,2]
[390560603,1760083844141,-500.0,0.00016986,2]
[390560605,1760083844150,-500.0,0.00016986,2]
[390560607,1760083844159,-1468.2,0.00016986,2]
[390560609,1760083844168,-602.08488313,0.00016986,2]
[390560611,1760083844177,-2093.4,0.00016986,2]
[390560613,1760083844186,-151.0,0.00016986,2]
[390560615,1760083844195,-849.1,0.00016986,2]
[390560617,1760083844204,-500.0,0.00016986,2]
[390560619,1760083844213,-479.28879186,0.00016986,2]
[390560621,1760083844223,-500.0,0.00016986,2]
[390560623,1760083844232,-500.0,0.00016986,2]
[390560625,1760083844241,-202.72437659,0.00016986,2]
[390560627,1760083844251,-151.0,0.00016986,2]
[390560629,1760083844260,-151.0,0.00016986,2]
[390560631,1760083844269,-502.52250354,0.00016986,2]
[390560633,1760083844278,-151.0,0.00016986,2]
[390560635,1760083844287,-500.0,0.00016986,2]
[390560637,1760083844296,-500.0,0.00016986,2]
[390560639,1760083844305,-151.0,0.00016986,2]
[390560641,1760083844315,-500.0,0.00016986,2]
[390560643,1760083844323,-500.0,0.00016986,2]
[390560645,1760083844334,-500.0,0.00016986,2]
[390560647,1760083844343,-151.0,0.00016986,2]
[390560649,1760083844352,-2991.67,0.00016986,2]
[390560651,1760083844362,-151.0,0.00016986,2]
[390560653,1760083844371,-500.0,0.00016986,2]
[390560655,1760083844382,-926.24,0.00016986,2]
[390560657,1760083844391,-867.28,0.00016986,2]
[390560659,1760083844401,-500.0,0.00016986,2]
[390560661,1760083844411,-792.19,0.00016986,2]
[390560663,1760083844420,-500.0,0.00016986,2]
[390560665,1760083844429,-500.0,0.00016986,2]
[390560667,1760083844439,-500.0,0.00016986,2]
[390560669,1760083844449,-500.0,0.00016986,2]
[390560671,1760083844458,-1294.14,0.00016986,2]
[390560673,1760083844468,-500.0,0.00016986,2]
[390560675,1760083844477,-512.32,0.00016986,2]
[390560677,1760083844486,-500.0,0.00016986,2]
[390560679,1760083844496,-504.79304014,0.00016986,2]
[390560681,1760083844505,-320.003172,0.00016986,2]
[390560683,1760083844514,-320.003172,0.00016986,2]
[390560685,1760083844523,-320.003172,0.00016986,2]
[390560687,1760083844534,-320.003172,0.00016986,2]
[390560689,1760083844543,-860.19,0.00016986,2]
[390560691,1760083844553,-952.43,0.00016986,2]
[390560693,1760083844565,-684.8,0.00016986,2]
[390560695,1760083844575,-378.9543761,0.00016986,2]
[390560697,1760083844585,-500.0,0.00016986,2]
[390560699,1760083844594,-1392.68,0.00016986,2]
[390560701,1760083844603,-151.0,0.00016986,2]
[390560703,1760083844612,-500.0,0.00016986,2]
[390560705,1760083844621,-883.77,0.00016986,2]
[390560707,1760083844630,-500.0,0.00016986,2]
[390560709,1760083844640,-722.8,0.00016986,2]
[390560711,1760083844649,-4092.86,0.00016986,2]
[390560713,1760083844659,-500.0,0.00016986,2]
[390560715,1760083844667,-500.0,0.00016986,2]
[390560717,1760083844676,-500.0,0.00016986,2]
[390560719,1760083844686,-1363.86,0.00016986,2]
[390560721,1760083844695,-151.0,0.00016986,2]
[390560723,1760083844704,-500.0,0.00016986,2]
[390560725,1760083844713,-500.0,0.00016986,2]
[390560726,1760083844723,-500.0,0.00016986,2]
[390560728,1760083844732,-500.0,0.00016986,2]
[390560730,1760083844742,-500.0,0.00016986,2]
[390560732,1760083844751,-544.05,0.00016986,2]
[390560734,1760083844760,-500.0,0.00016986,2]
[390560736,1760083844769,-151.0,0.00016986,2]
[390560738,1760083844778,-725.67,0.00016986,2]
[390560740,1760083844787,-500.0,0.00016986,2]
[390560742,1760083844798,-519.1,0.00016986,2]
[390560744,1760083844818,-2605.72,0.00016986,2]
[390560746,1760083844837,-500.0,0.00016986,2]
[390560748,1760083844857,-500.0,0.00016986,2]
[390560750,1760083844871,-788.96,0.00016986,2]
[390560752,1760083844880,-1069.32,0.00016986,2]
[390560754,1760083844889,-500.0,0.00016986,2]
[390560756,1760083844899,-500.0,0.00016986,2]
[390560758,1760083844908,-500.0,0.00016986,2]
[390560760,1760083844917,-151.0,0.00016986,2]
[390560762,1760083844926,-151.0,0.00016986,2]
[390560764,1760083844935,-500.0,0.00016986,2]
[390560766,1760083844944,-151.0,0.00016986,2]
[390560768,1760083844953,-151.0,0.00016986,2]
[390560770,1760083844962,-151.0,0.00016986,2]
[390560772,1760083844971,-151.0,0.00016986,2]
[390560774,1760083844980,-500.0,0.00016986,2]
[390560776,1760083844989,-711.83,0.00016986,2]
[390560778,1760083844998,-4223.7,0.00016986,2]
[390560779,1760083845007,-151.0,0.00016986,2]
[390560781,1760083845017,-405.781744,0.00016986,2]
[390560784,1760083845026,-500.0,0.00016986,2]
[390560785,1760083845036,-151.0,0.00016986,2]
[390560787,1760083845047,-405.781744,0.00016986,2]
[390560789,1760083845056,-268.268824,0.00016986,2]
[390560791,1760083845066,-151.0,0.00016986,2]
[390560794,1760083845076,-151.0,0.00016986,2]
[390560795,1760083845086,-405.781744,0.00016986,2]
[390560797,1760083845095,-405.781744,0.00016986,2]
[390560799,1760083845105,-151.0,0.00016986,2]
[390560801,1760083845115,-1019.89,0.00016986,2]
[390560803,1760083845125,-405.781744,0.00016986,2]
[390560806,1760083845135,-151.0,0.00016986,2]
[390560807,1760083845145,-405.781744,0.00016986,2]
[390560810,1760083845155,-500.0,0.00016986,2]
[390560811,1760083845165,-151.0,0.00016986,2]
[390560813,1760083845174,-405.781744,0.00016986,2]
[390560815,1760083845184,-151.0,0.00016986,2]
[390560817,1760083845193,-405.781744,0.00016986,2]
[390560819,1760083845203,-273.872782,0.00016986,2]
[390560821,1760083845212,-500.0,0.00016986,2]
[390560823,1760083845221,-5148.42,0.00016986,2]
[390560825,1760083845230,-151.0,0.00016986,2]
[390560827,1760083845243,-151.0,0.00016986,2]
[390560829,1760083845252,-901.93,0.00016986,2]
[390560831,1760083845261,-500.0,0.00016986,2]
[390560833,1760083845271,-151.0,0.00016986,2]
[390560835,1760083845280,-151.0,0.00016986,2]
[390560837,1760083845290,-151.0,0.00016986,2]
[390560839,1760083845299,-151.0,0.00016986,2]
[390560841,1760083845308,-168.374148,0.00016986,2]
[390560845,1760083845318,-616.2,0.00016986,2]
[390560848,1760083845327,-500.0,0.00016986,2]
[390560850,1760083845337,-500.0,0.00016986,2]
[390560852,1760083845346,-2003.86,0.00016986,2]
[390560854,1760083845355,-500.0,0.00016986,2]
[390560856,1760083845363,-500.0,0.00016986,2]
[390560858,1760083845374,-1996.43,0.00016986,2]
[390560860,1760083845383,-500.0,0.00016986,2]
[390560862,1760083845392,-151.506493,0.00016986,2]
[390560864,1760083845401,-217.454934,0.00016986,2]
[390560866,1760083845410,-217.454934,0.00016986,2]
[390560868,1760083845419,-217.454934,0.00016986,2]
[390560870,1760083845429,-217.454934,0.00016986,2]
[390560872,1760083845438,-500.0,0.00016986,2]
[390560874,1760083845447,-217.454934,0.00016986,2]
[390560876,1760083845457,-217.454934,0.00016986,2]
[390560878,1760083845466,-500.0,0.00016986,2]
[390560880,1760083845475,-217.454934,0.00016986,2]
[390560882,1760083845485,-217.454934,0.00016986,2]
[390560884,1760083845494,-246.05984314,0.00016986,2]
[390560886,1760083845503,-500.0,0.00016986,2]
[390560888,1760083845512,-2336.93,0.00016986,2]
[390560890,1760083845521,-500.0,0.00016986,2]
[390560892,1760083845531,-151.0,0.00016986,2]
[390560894,1760083845540,-1198.94,0.00016986,2]
[390560896,1760083845549,-151.0,0.00016986,2]
[390560898,1760083845558,-151.0,0.00016986,2]
[390560900,1760083845568,-151.0,0.00016986,2]
[390560902,1760083845577,-1294.33,0.00016986,2]
[390560904,1760083845586,-500.0,0.00016986,2]
[390560906,1760083845596,-151.0,0.00016986,2]
[390560908,1760083845604,-151.0,0.00016986,2]
[390560910,1760083845614,-500.0,0.00016986,2]
[390560912,1760083845624,-151.0,0.00016986,2]
[390560914,1760083845633,-718.57,0.00016986,2]
[390560916,1760083845643,-151.0,0.00016986,2]
[390560918,1760083845652,-500.0,0.00016986,2]
[390560920,1760083845662,-815.47,0.00016986,2]
[390560921,1760083845672,-500.0,0.00016986,2]
[390560923,1760083845682,-614.65,0.00016986,2]
[390560925,1760083845692,-500.0,0.00016986,2]
[390560927,1760083845702,-173.87863053,0.000171,2]
[390560930,1760083845712,-447.156737,0.00017111,2]
[390560931,1760083845723,-160.0,0.00017122,2]
[390560933,1760083845732,-417.15472785,0.0001713,2]
[390560935,1760083845742,-234.32063665,0.0001713,2]
[390560937,1760083845751,-402.20179238,0.0001713,2]
[390560938,1760083845760,-160.0,0.0001713,2]
[390560939,1760083845769,-1041.66666667,0.0001713,2]
[390560940,1760083845778,-151.0,0.000172,2]
[390560941,1760083845787,-4195.0,0.00017242,2]
[390560942,1760083845796,-150.154,0.00017244,2]
[390560943,1760083845808,-150.0,0.00017244,2]
[390560944,1760083845818,-150.063,0.00017244,2]
[390560945,1760083845827,-150.213,0.00017244,2]
[390560946,1760083845836,-980.0,0.00017244,2]
[390560947,1760083845847,-2159.0,0.00017244,2]
[390560949,1760083845856,-630.0,0.00017244,2]
[390560951,1760083845866,-411.0,0.00017244,2]
[390560953,1760083845876,-414.167,0.00017244,2]
[390560955,1760083845886,-169.15936193,0.00017259,2]
[390560957,1760083845895,-500.0,0.0001726,2]
[390560959,1760083845905,-500.0,0.0001726,2]
[390560961,1760083845915,-500.0,0.0001726,2]
[390560963,1760083845924,-500.0,0.0001726,2]
[390560965,1760083845933,-500.0,0.0001726,2]
[390560967,1760083845943,-503.68,0.0001726,2]
[390560969,1760083845952,-152.298177,0.0001726,2]
[390560971,1760083845961,-500.0,0.0001726,2]
[390560973,1760083845970,-500.0,0.0001726,2]
[390560976,1760083845981,-850.34,0.0001726,2]
[390560978,1760083845990,-397.70588707,0.0001726,2]
[390560979,1760083845999,-1184.89,0.0001726,2]
[390560982,1760083846009,-500.0,0.0001726,2]
[390560983,1760083846018,-500.0,0.0001726,2]
[390560986,1760083846028,-296.92365624,0.0001726,2]
[390560988,1760083846037,-500.0,0.0001726,2]
[390560990,1760083846046,-500.0,0.0001726,2]
[390560992,1760083846056,-500.0,0.0001726,2]
[390560994,1760083846065,-500.0,0.0001726,2]
[390560996,1760083846075,-504.43861345,0.0001726,2]
[390560998,1760083846084,-500.0,0.0001726,2]